fUSD/lending_fUSD_20250622
["ID","MTS","AMOUNT","RATE_DAILY","PERIOD"]
[366912185,1750567845390,-420.75850982,0.00019178,2]
[366912186,1750567845399,-492.84675849,0.00019178,2]
[366912187,1750567845409,-2147.21,0.00019178,2]
[366912188,1750567845419,-1172.58,0.00019178,2]
[366912189,1750567845429,-490.0,0.00019178,2]
[366912190,1750567845439,-490.0,0.00019178,2]
[366912191,1750567845448,-490.0,0.00019178,2]
[366912192,1750567845457,-490.0,0.00019178,2]
[366912193,1750567845466,-490.0,0.00019178,2]
[366912194,1750567845475,-490.0,0.00019178,2]
[366912195,1750567845485,-490.0,0.00019178,2]
[366912196,1750567845494,-1674.07,0.00019178,2]
[366912197,1750567845504,-2727.24,0.00019178,2]
[366912198,1750567845513,-735.62,0.00019178,2]
[366912199,1750567845523,-490.0,0.00019178,2]
[366912200,1750567845532,-490.0,0.00019178,2]
[366912201,1750567845542,-544.29,0.00019178,2]
[366912202,1750567845552,-490.0,0.00019178,2]
[366912203,1750567845561,-490.0,0.00019178,2]
[366912204,1750567845571,-490.0,0.00019178,2]
[366912205,1750567845581,-1086.23,0.00019178,2]
[366912206,1750567845591,-1021.75,0.00019178,2]
[366912207,1750567845600,-500.0,0.00019178,2]
[366912208,1750567845610,-490.0,0.00019178,2]
[366912209,1750567845619,-500.0,0.00019178,2]
[366912210,1750567845629,-500.0,0.00019178,2]
[366912211,1750567845639,-1631.03,0.00019178,2]
[366912212,1750567845649,-500.0,0.00019178,2]
[366912213,1750567845659,-1790.64,0.00019178,2]
[366912214,1750567845669,-500.0,0.00019178,2]
[366912215,1750567845680,-500.0,0.00019178,2]
[366912216,1750567845690,-500.0,0.00019178,2]
[366912217,1750567845700,-500.0,0.00019178,2]
[366912218,1750567845710,-500.0,0.00019178,2]
[366912219,1750567845720,-500.0,0.00019178,2]
[366912220,1750567845730,-1258.01,0.00019178,2]
[366912221,1750567845740,-361.16697376,0.00019178,2]
[366912222,1750567845749,-490.0,0.00019178,2]
[366912223,1750567845759,-747.84,0.00019178,2]
[366912224,1750567845768,-490.0,0.00019178,2]
[366912225,1750567845778,-493.48426734,0.00019178,2]
[366912226,1750567845787,-490.0,0.00019178,2]
[366912227,1750567845797,-490.0,0.00019178,2]
[366912228,1750567845806,-615.09394385,0.00019178,2]
[366912229,1750567845816,-490.0,0.00019178,2]
[366912230,1750567845827,-1849.67,0.00019178,2]
[366912231,1750567845838,-872.98,0.00019178,2]
[366912232,1750567845848,-2019.51,0.00019178,2]
[366912233,1750567845859,-1061.7,0.00019178,2]
[366912234,1750567845868,-545.04,0.00019178,2]
[366912235,1750567845878,-490.0,0.00019178,2]
[366912236,1750567845887,-1250.41,0.00019178,2]
[366912237,1750567845897,-234.64491024,0.00019178,2]
[366912238,1750567845906,-490.0,0.00019178,2]
[366912239,1750567845916,-490.0,0.00019178,2]
[366912240,1750567845925,-1324.93,0.00019178,2]
[366912241,1750567845935,-490.0,0.00019178,2]
[366912242,1750567845944,-490.0,0.00019178,2]
[366912243,1750567845955,-490.0,0.00019178,2]
[366912244,1750567845965,-490.0,0.00019178,2]
[366912245,1750567845974,-490.0,0.00019178,2]
[366912246,1750567845984,-1471.62,0.00019178,2]
[366912247,1750567845993,-491.22793244,0.00019178,2]
[366912248,1750567846003,-490.0,0.00019178,2]
[366912249,1750567846012,-490.0,0.00019178,2]
[366912250,1750567846022,-1652.88,0.00019178,2]
[366912251,1750567846031,-490.0,0.00019178,2]
[366912252,1750567846041,-490.0,0.00019178,2]
[366912253,1750567846051,-701.04,0.00019178,2]
[366912254,1750567846061,-490.0,0.00019178,2]
[366912255,1750567846072,-490.0,0.00019178,2]
[366912256,1750567846082,-490.0,0.00019178,2]
[366912257,1750567846091,-1487.68,0.00019178,2]
[366912258,1750567846101,-588.0,0.00019178,2]
[366912259,1750567846111,-490.0,0.00019178,2]
[366912261,1750567846225,-490.0,0.00019178,2]
[366912262,1750567846236,-490.0,0.00019178,2]
[366912263,1750567846246,-1640.43,0.00019178,2]
[366912264,1750567846255,-676.37,0.00019178,2]
[366912265,1750567846265,-490.0,0.00019178,2]
[366912266,1750567846274,-490.0,0.00019178,2]
[366912267,1750567846284,-490.0,0.00019178,2]
[366912268,1750567846293,-500.0,0.00019178,2]
[366912269,1750567846303,-593.47738946,0.00019178,2]
[366912270,1750567846312,-490.0,0.00019178,2]
[366912271,1750567846321,-490.0,0.00019178,2]
[366912272,1750567846330,-490.0,0.00019178,2]
[366912273,1750567846339,-607.98,0.00019178,2]
[366912274,1750567846349,-490.0,0.00019178,2]
[366912275,1750567846358,-1055.24,0.00019178,2]
[366912276,1750567846367,-490.0,0.00019178,2]
[366912277,1750567846376,-490.0,0.00019178,2]
[366912278,1750567846386,-1671.47,0.00019178,2]
[366912279,1750567846395,-490.0,0.00019178,2]
[366912280,1750567846405,-1916.49,0.00019178,2]
[366912281,1750567846414,-1522.15,0.00019178,2]
[366912282,1750567846423,-570.18,0.00019178,2]
[366912283,1750567846433,-490.0,0.00019178,2]
[366912284,1750567846443,-490.0,0.00019178,2]
[366912285,1750567846452,-680.02,0.00019178,2]
[366912286,1750567846461,-1579.7,0.00019178,2]
[366912287,1750567846471,-507.19,0.00019178,2]
[366912288,1750567846480,-490.0,0.00019178,2]
[366912289,1750567846489,-490.0,0.00019178,2]
[366912290,1750567846497,-490.0,0.00019178,2]
[366912291,1750567846505,-483.98342654,0.00019178,2]
[366912292,1750567846513,-490.0,0.00019178,2]
[366912293,1750567846520,-490.0,0.00019178,2]
[366912294,1750567846529,-490.0,0.00019178,2]
[366912295,1750567846538,-1272.89,0.00019178,2]
[366912296,1750567846547,-869.02,0.00019178,2]
[366912297,1750567846557,-490.0,0.00019178,2]
[366912298,1750567846566,-490.0,0.00019178,2]
[366912299,1750567846576,-490.0,0.00019178,2]
[366912300,1750567846585,-497.5297443,0.00019178,2]
[366912301,1750567846595,-490.0,0.00019178,2]
[366912302,1750567846604,-1668.78,0.00019178,2]
[366912303,1750567846613,-2511.45,0.00019178,2]
[366912304,1750567846623,-1854.89,0.00019178,2]
[366912305,1750567846634,-490.0,0.00019178,2]
[366912306,1750567846643,-490.0,0.00019178,2]
[366912307,1750567846652,-490.0,0.00019178,2]
[366912308,1750567846662,-490.0,0.00019178,2]
[366912309,1750567846671,-490.0,0.00019178,2]
[366912310,1750567846680,-490.0,0.00019178,2]
[366912311,1750567846689,-490.0,0.00019178,2]
[366912312,1750567846699,-490.0,0.00019178,2]
[366912313,1750567846707,-491.49,0.00019178,2]
[366912314,1750567846716,-490.0,0.00019178,2]
[366912316,1750567846725,-1906.85,0.00019178,2]
[366912317,1750567846735,-490.0,0.00019178,2]
[366912318,1750567846744,-490.0,0.00019178,2]
[366912319,1750567846753,-2109.82,0.00019178,2]
[366912320,1750567846762,-1332.99,0.00019178,2]
[366912321,1750567846772,-490.0,0.00019178,2]
[366912323,1750567846781,-543.35475787,0.00019178,2]
[366912325,1750567846791,-490.0,0.00019178,2]
[366912326,1750567846800,-490.0,0.00019178,2]
[366912327,1750567846809,-614.49523522,0.00019178,2]
[366912328,1750567846818,-1954.24,0.00019178,2]
[366912329,1750567846826,-490.0,0.00019178,2]
[366912331,1750567846835,-494.09980186,0.00019178,2]
[366912332,1750567846844,-1776.9,0.00019178,2]
[366912333,1750567846853,-490.0,0.00019178,2]
[366912334,1750567846862,-490.0,0.00019178,2]
[366912335,1750567846871,-1073.05,0.00019178,2]
[366912336,1750567846880,-490.0,0.00019178,2]
[366912337,1750567846890,-1483.53,0.00019178,2]
[366912338,1750567846902,-2684.59,0.00019178,2]
[366912339,1750567846913,-490.0,0.00019178,2]
[366912340,1750567846924,-490.0,0.00019178,2]
[366912341,1750567846935,-490.0,0.00019178,2]
[366912342,1750567846946,-1265.38,0.00019178,2]
[366912343,1750567846955,-1758.75,0.00019178,2]
[366912344,1750567846964,-490.0,0.00019178,2]
[366912345,1750567846974,-796.9,0.00019178,2]
[366912346,1750567846983,-888.5,0.00019178,2]
[366912347,1750567846993,-1177.84,0.00019178,2]
[366912348,1750567847003,-490.0,0.00019178,2]
[366912349,1750567847012,-490.0,0.00019178,2]
[366912350,1750567847021,-490.0,0.00019178,2]
[366912351,1750567847032,-490.0,0.00019178,2]
[366912352,1750567847042,-490.0,0.00019178,2]
[366912353,1750567847051,-2739.26,0.00019178,2]
[366912354,1750567847061,-490.0,0.00019178,2]
[366912355,1750567847070,-490.0,0.00019178,2]
[366912356,1750567847079,-1300.79,0.00019178,2]
[366912357,1750567847089,-701.2,0.00019178,2]
[366912358,1750567847098,-490.0,0.00019178,2]
[366912359,1750567847107,-563.18,0.00019178,2]
[366912360,1750567847118,-490.0,0.00019178,2]
[366912361,1750567847129,-490.0,0.00019178,2]
[366912362,1750567847139,-490.0,0.00019178,2]
[366912363,1750567847148,-490.0,0.00019178,2]
[366912364,1750567847158,-3717.55,0.00019178,2]
[366912365,1750567847169,-490.0,0.00019178,2]
[366912366,1750567847179,-490.0,0.00019178,2]
[366912367,1750567847188,-349.34668907,0.00019178,2]
[366912368,1750567847199,-490.0,0.00019178,2]
[366912369,1750567847209,-539.12,0.00019178,2]
[366912370,1750567847218,-695.17,0.00019178,2]
[366912371,1750567847227,-695.17,0.00019178,2]
[366912372,1750567847237,-490.0,0.00019178,2]
[366912373,1750567847247,-695.17,0.00019178,2]
[366912374,1750567847257,-695.17,0.00019178,2]
[366912375,1750567847267,-695.17,0.00019178,2]
[366912376,1750567847277,-695.17,0.00019178,2]
[366912377,1750567847286,-1392.78,0.00019178,2]
[366912378,1750567847295,-490.0,0.00019178,2]
[366912379,1750567847304,-695.17,0.00019178,2]
[366912380,1750567847313,-695.17,0.00019178,2]
[366912381,1750567847323,-695.17,0.00019178,2]
[366912382,1750567847332,-695.17,0.00019178,2]
[366912383,1750567847342,-490.0,0.00019178,2]
[366912384,1750567847352,-490.0,0.00019178,2]
[366912385,1750567847361,-490.0,0.00019178,2]
[366912386,1750567847371,-490.0,0.00019178,2]
[366912387,1750567847380,-1315.43,0.00019178,2]
[366912388,1750567847390,-494.04556876,0.00019178,2]
[366912389,1750567847399,-1192.78,0.00019178,2]
[366912390,1750567847408,-490.0,0.00019178,2]
[366912391,1750567847418,-490.0,0.00019178,2]
[366912392,1750567847427,-490.0,0.00019178,2]
[366912393,1750567847435,-284.29691337,0.00019178,2]
[366912394,1750567847445,-718.17,0.00019178,2]
[366912395,1750567847455,-492.75345554,0.00019178,2]
[366912396,1750567847464,-490.0,0.00019178,2]
[366912397,1750567847474,-490.0,0.00019178,2]
[366912398,1750567847483,-490.0,0.00019178,2]
[366912399,1750567847493,-490.0,0.00019178,2]
[366912400,1750567847502,-492.5442619,0.00019178,2]
[366912401,1750567847511,-490.0,0.00019178,2]
[366912402,1750567847521,-2175.04,0.00019178,2]
[366912403,1750567847531,-490.0,0.00019178,2]
[366912404,1750567847541,-490.0,0.00019178,2]
[366912405,1750567847551,-490.0,0.00019178,2]
[366912406,1750567847561,-502.269256,0.00019178,2]
[366912407,1750567847571,-2329.1,0.00019178,2]
[366912408,1750567847580,-490.0,0.00019178,2]
[366912409,1750567847590,-432.3394546,0.00019178,2]
[366912410,1750567847599,-490.0,0.00019178,2]
[366912411,1750567847609,-491.43126154,0.00019178,2]
[366912412,1750567847618,-490.0,0.00019178,2]
[366912413,1750567847627,-490.0,0.00019178,2]
[366912414,1750567847636,-1565.27,0.00019178,2]
[366912415,1750567847645,-490.0,0.00019178,2]
[366912416,1750567847654,-490.0,0.00019178,2]
[366912417,1750567847664,-1859.54,0.00019178,2]
[366912418,1750567847673,-1087.26,0.00019178,2]
[366912419,1750567847683,-341.19986483,0.00019178,2]
[366912420,1750567847692,-490.0,0.00019178,2]
[366912421,1750567847701,-698.45,0.00019178,2]
[366912422,1750567847710,-1616.74,0.00019178,2]
[366912423,1750567847719,-748.88,0.00019178,2]
[366912424,1750567847729,-490.0,0.00019178,2]
[366912425,1750567847738,-494.82736737,0.00019178,2]
[366912426,1750567847747,-490.0,0.00019178,2]
[366912427,1750567847757,-490.0,0.00019178,2]
[366912428,1750567847766,-490.0,0.00019178,2]
[366912429,1750567847775,-490.0,0.00019178,2]
[366912430,1750567847784,-2489.72,0.00019178,2]
[366912431,1750567847794,-490.0,0.00019178,2]
[366912432,1750567847803,-490.0,0.00019178,2]
[366912433,1750567847812,-967.84,0.00019178,2]
[366912434,1750567847821,-2093.54,0.00019178,2]
[366912435,1750567847830,-1900.45,0.00019178,2]
[366912436,1750567847840,-490.0,0.00019178,2]
[366912437,1750567847850,-616.32803484,0.00019178,2]
[366912438,1750567847860,-490.0,0.00019178,2]
[366912439,1750567847870,-560.95134765,0.00019178,2]
[366912440,1750567847879,-490.0,0.00019178,2]
[366912441,1750567847889,-490.0,0.00019178,2]
[366912442,1750567847899,-500.0,0.00019178,2]
[366912443,1750567847908,-500.0,0.00019178,2]
[366912444,1750567847918,-500.0,0.00019178,2]
[366912445,1750567847927,-201.9744846,0.00019178,2]
[366912446,1750567847936,-490.0,0.00019178,2]
[366912447,1750567847946,-490.0,0.00019178,2]
[366912448,1750567847956,-939.87,0.00019178,2]
[366912449,1750567847965,-490.0,0.00019178,2]
[366912450,1750567847975,-491.44406328,0.00019178,2]
[366912451,1750567847984,-490.0,0.00019178,2]
[366912452,1750567847994,-500.0,0.00019178,2]
[366912453,1750567848004,-500.0,0.00019178,2]
[366912454,1750567848014,-500.0,0.00019178,2]
[366912455,1750567848023,-2058.04,0.00019178,2]
[366912456,1750567848033,-500.0,0.00019178,2]
[366912457,1750567848043,-490.0,0.00019178,2]
[366912458,1750567848055,-1776.49,0.00019178,2]
[366912459,1750567848068,-490.0,0.00019178,2]
[366912460,1750567848080,-490.0,0.00019178,2]
[366912461,1750567848092,-490.0,0.00019178,2]
[366912462,1750567848102,-727.33,0.00019178,2]
[366912463,1750567848113,-490.0,0.00019178,2]
[366912464,1750567848132,-332.07214602,0.00019178,2]
[366912465,1750567848143,-2039.85,0.00019178,2]
[366912466,1750567848153,-768.84,0.00019178,2]
[366912467,1750567848163,-580.0,0.00019178,2]
[366912468,1750567848175,-490.0,0.00019178,2]
[366912469,1750567848185,-490.0,0.00019178,2]
[366912470,1750567848195,-490.0,0.00019178,2]
[366912471,1750567848206,-490.0,0.00019178,2]
[366912472,1750567848216,-851.0,0.00019178,2]
[366912473,1750567848226,-490.0,0.00019178,2]
[366912474,1750567848236,-342.09144923,0.00019178,2]
[366912475,1750567848247,-1247.82,0.00019178,2]
[366912476,1750567848257,-492.16075157,0.00019178,2]
[366912477,1750567848267,-490.0,0.00019178,2]
[366912478,1750567848277,-2053.61,0.00019178,2]
[366912479,1750567848288,-490.0,0.00019178,2]
[366912480,1750567848299,-435.29521589,0.00019178,2]
[366912481,1750567848309,-185.99887189,0.00019178,2]
[366912482,1750567848319,-490.0,0.00019178,2]
[366912483,1750567848329,-490.0,0.00019178,2]
[366912484,1750567848339,-490.0,0.00019178,2]
[366912485,1750567848359,-490.0,0.00019178,2]
[366912486,1750567848370,-490.0,0.00019178,2]
[366912487,1750567848380,-2677.65,0.00019178,2]
[366912488,1750567848390,-490.0,0.00019178,2]
[366912489,1750567848400,-490.0,0.00019178,2]
[366912490,1750567848410,-490.0,0.00019178,2]
[366912491,1750567848420,-846.06,0.00019178,2]
[366912492,1750567848430,-490.0,0.00019178,2]
[366912493,1750567848440,-490.0,0.00019178,2]
[366912494,1750567848455,-490.0,0.00019178,2]
[366912495,1750567848465,-490.0,0.00019178,2]
[366912496,1750567848475,-903.33,0.00019178,2]
[366912497,1750567848485,-1057.62,0.00019178,2]
[366912498,1750567848495,-533.23,0.00019178,2]
[366912499,1750567848505,-585.58,0.00019178,2]
[366912500,1750567848515,-490.0,0.00019178,2]
[366912501,1750567848525,-490.0,0.00019178,2]
[366912502,1750567848535,-490.0,0.00019178,2]
[366912503,1750567848545,-490.0,0.00019178,2]
[366912504,1750567848555,-1875.34,0.00019178,2]
[366912505,1750567848566,-1740.19,0.00019178,2]
[366912506,1750567848577,-784.82,0.00019178,2]
[366912507,1750567848586,-490.0,0.00019178,2]
[366912508,1750567848596,-490.0,0.00019178,2]
[366912509,1750567848606,-490.0,0.00019178,2]
[366912510,1750567848616,-490.0,0.00019178,2]
[366912511,1750567848627,-490.0,0.00019178,2]
[366912512,1750567848637,-2960.04,0.00019178,2]
[366912513,1750567848647,-490.0,0.00019178,2]
[366912514,1750567848657,-495.78503697,0.00019178,2]
[366912515,1750567848667,-490.0,0.00019178,2]
[366912516,1750567848677,-490.0,0.00019178,2]
[366912517,1750567848688,-490.0,0.00019178,2]
[366912518,1750567848698,-2008.83,0.00019178,2]
[366912519,1750567848709,-490.0,0.00019178,2]
[366912520,1750567848719,-620.88,0.00019178,2]
[366912521,1750567848729,-736.67,0.00019178,2]
[366912522,1750567848740,-1601.71,0.00019178,2]
[366912523,1750567848751,-490.0,0.00019178,2]
[366912524,1750567848761,-490.0,0.00019178,2]
[366912525,1750567848771,-584.93,0.00019178,2]
[366912526,1750567848781,-490.0,0.00019178,2]
[366912527,1750567848792,-490.0,0.00019178,2]
[366912528,1750567848802,-1048.69,0.00019178,2]
[366912529,1750567848812,-490.0,0.00019178,2]
[366912530,1750567848822,-1371.46,0.00019178,2]
[366912531,1750567848832,-490.0,0.00019178,2]
[366912532,1750567848843,-1251.57,0.00019178,2]
[366912533,1750567848853,-490.0,0.00019178,2]
[366912534,1750567848864,-490.0,0.00019178,2]
[366912535,1750567848874,-490.0,0.00019178,2]
[366912536,1750567848885,-490.0,0.00019178,2]
[366912537,1750567848895,-2380.51,0.00019178,2]
[366912538,1750567848905,-297.08240929,0.00019178,2]
[366912539,1750567848916,-490.0,0.00019178,2]
[366912540,1750567848926,-490.0,0.00019178,2]
[366912541,1750567848936,-490.0,0.00019178,2]
[366912542,1750567848946,-854.84,0.00019178,2]
[366912543,1750567848956,-490.0,0.00019178,2]
[366912544,1750567848966,-490.0,0.00019178,2]
[366912545,1750567848976,-490.0,0.00019178,2]
[366912546,1750567848987,-2398.15,0.00019178,2]
[366912547,1750567848998,-792.12,0.00019178,2]
[366912548,1750567849008,-505.14,0.00019178,2]
[366912549,1750567849018,-490.0,0.00019178,2]
[366912550,1750567849029,-490.0,0.00019178,2]
[366912551,1750567849041,-490.0,0.00019178,2]
[366912552,1750567849051,-1522.17,0.00019178,2]
[366912553,1750567849062,-490.0,0.00019178,2]
[366912554,1750567849072,-404.3039019,0.00019178,2]
[366912555,1750567849082,-490.0,0.00019178,2]
[366912556,1750567849092,-490.0,0.00019178,2]
[366912557,1750567849102,-244.10849019,0.00019178,2]
[366912558,1750567849113,-490.0,0.00019178,2]
[366912559,1750567849129,-980.32,0.00019178,2]
[366912560,1750567849141,-490.0,0.00019178,2]
[366912561,1750567849152,-1392.81,0.00019178,2]
[366912562,1750567849164,-490.0,0.00019178,2]
[366912563,1750567849175,-490.0,0.00019178,2]
[366912564,1750567849187,-490.0,0.00019178,2]
[366912565,1750567849198,-989.29,0.00019178,2]
[366912566,1750567849208,-490.0,0.00019178,2]
[366912567,1750567849219,-490.0,0.00019178,2]
[366912568,1750567849229,-490.0,0.00019178,2]
[366912569,1750567849239,-790.85,0.00019178,2]
[366912570,1750567849249,-490.0,0.00019178,2]
[366912571,1750567849260,-490.0,0.00019178,2]
[366912572,1750567849270,-490.0,0.00019178,2]
[366912573,1750567849280,-530.56740585,0.00019178,2]
[366912574,1750567849294,-490.0,0.00019178,2]
[366912575,1750567849304,-490.0,0.00019178,2]
[366912576,1750567849314,-490.0,0.00019178,2]
[366912577,1750567849325,-490.0,0.00019178,2]
[366912578,1750567849335,-490.0,0.00019178,2]
[366912579,1750567849346,-580.1,0.00019178,2]
[366912580,1750567849356,-554.99,0.00019178,2]
[366912581,1750567849366,-490.0,0.00019178,2]
[366912582,1750567849376,-490.0,0.00019178,2]
[366912583,1750567849387,-618.97,0.00019178,2]
[366912584,1750567849397,-816.92,0.00019178,2]
[366912585,1750567849408,-490.0,0.00019178,2]
[366912586,1750567849418,-490.0,0.00019178,2]
[366912587,1750567849428,-2200.91,0.00019178,2]
[366912588,1750567849438,-3856.08,0.00019178,2]
[366912589,1750567849449,-490.0,0.00019178,2]
[366912590,1750567849459,-1396.77,0.00019178,2]
[366912591,1750567849469,-657.22,0.00019178,2]
[366912592,1750567849480,-490.0,0.00019178,2]
[366912593,1750567849489,-490.0,0.00019178,2]
[366912594,1750567849499,-2345.56,0.00019178,2]
[366912595,1750567849509,-490.0,0.00019178,2]
[366912596,1750567849519,-905.22,0.00019178,2]
[366912597,1750567849529,-490.0,0.00019178,2]
[366912598,1750567849539,-490.0,0.00019178,2]
[366912599,1750567849548,-490.0,0.00019178,2]
[366912600,1750567849558,-495.39646925,0.00019178,2]
[366912601,1750567849568,-532.38,0.00019178,2]
[366912602,1750567849578,-490.0,0.00019178,2]
[366912603,1750567849588,-2889.51,0.00019178,2]
[366912604,1750567849598,-988.71,0.00019178,2]
[366912605,1750567849609,-490.0,0.00019178,2]
[366912606,1750567849619,-490.0,0.00019178,2]
[366912607,1750567849629,-2608.86,0.00019178,2]
[366912608,1750567849639,-1886.35,0.00019178,2]
[366912609,1750567849650,-490.0,0.00019178,2]
[366912610,1750567849659,-4495.59,0.00019178,2]
[366912611,1750567849669,-1448.62,0.00019178,2]
[366912612,1750567849679,-490.0,0.00019178,2]
[366912613,1750567849689,-1010.61,0.00019178,2]
[366912614,1750567849699,-490.0,0.00019178,2]
[366912615,1750567849709,-490.0,0.00019178,2]
[366912616,1750567849719,-353.82035193,0.00019178,2]
[366912617,1750567849729,-490.0,0.00019178,2]
[366912618,1750567849739,-674.82,0.00019178,2]
[366912619,1750567849749,-490.0,0.00019178,2]
[366912620,1750567849759,-490.0,0.00019178,2]
[366912621,1750567849770,-490.0,0.00019178,2]
[366912622,1750567849779,-490.0,0.00019178,2]
[366912623,1750567849790,-3433.73,0.00019178,2]
[366912624,1750567849801,-490.0,0.00019178,2]
[366912625,1750567849811,-2133.43,0.00019178,2]
[366912626,1750567849821,-365.75494317,0.00019178,2]
[366912627,1750567849831,-24471.3,0.00019178,2]
[366912628,1750567849842,-1166.01,0.00019178,2]
[366912629,1750567849853,-490.0,0.00019178,2]
[366912630,1750567849863,-7079.16,0.00019178,2]
[366912631,1750567849873,-760.59,0.00019178,2]
[366912632,1750567849883,-490.0,0.00019178,2]
[366912633,1750567849893,-490.0,0.00019178,2]
[366912634,1750567849903,-490.0,0.00019178,2]
[366912635,1750567849912,-490.0,0.00019178,2]
[366912636,1750567849922,-490.0,0.00019178,2]
[366912637,1750567849932,-490.0,0.00019178,2]
[366912638,1750567849946,-490.0,0.00019178,2]
[366912639,1750567849956,-496.15760544,0.00019178,2]
[366912640,1750567849967,-490.0,0.00019178,2]
[366912641,1750567849977,-490.0,0.00019178,2]
[366912642,1750567849987,-999.69,0.00019178,2]
[366912643,1750567849998,-985.38,0.00019178,2]
[366912644,1750567850009,-490.0,0.00019178,2]
[366912645,1750567850019,-490.0,0.00019178,2]
[366912646,1750567850030,-565.62738581,0.00019178,2]
[366912647,1750567850041,-565.62738581,0.00019178,2]
[366912648,1750567850051,-565.62738581,0.00019178,2]
[366912649,1750567850061,-565.62738581,0.00019178,2]
[366912650,1750567850071,-565.62738581,0.00019178,2]
[366912651,1750567850082,-565.62738581,0.00019178,2]
[366912652,1750567850093,-565.62738581,0.00019178,2]
[366912653,1750567850103,-565.62738581,0.00019178,2]
[366912654,1750567850113,-490.0,0.00019178,2]
[366912655,1750567850127,-565.62738581,0.00019178,2]
[366912656,1750567850138,-565.62738581,0.00019178,2]
[366912657,1750567850147,-565.62738581,0.00019178,2]
[366912658,1750567850159,-490.0,0.00019178,2]
[366912659,1750567850169,-565.62738581,0.00019178,2]
[366912660,1750567850179,-565.62738581,0.00019178,2]
[366912661,1750567850189,-565.62738581,0.00019178,2]
[366912662,1750567850202,-565.62738581,0.00019178,2]
[366912663,1750567850211,-1452.53,0.00019178,2]
[366912664,1750567850222,-4190.23,0.00019178,2]
[366912665,1750567850232,-565.62738581,0.00019178,2]
[366912666,1750567850242,-565.62738581,0.00019178,2]
[366912667,1750567850252,-565.62738581,0.00019178,2]
[366912668,1750567850262,-497.74,0.00019178,2]
[366912669,1750567850274,-490.0,0.00019178,2]
[366912670,1750567850284,-490.0,0.00019178,2]
[366912671,1750567850295,-494.16564808,0.00019178,2]
[366912672,1750567850306,-490.0,0.00019178,2]
[366912673,1750567850316,-490.0,0.00019178,2]
[366912674,1750567850326,-490.0,0.00019178,2]
[366912675,1750567850336,-490.0,0.00019178,2]
[366912676,1750567850347,-490.0,0.00019178,2]
[366912677,1750567850582,-490.0,0.00019178,2]
[366912678,1750567850614,-490.0,0.00019178,2]
[366912679,1750567850625,-490.0,0.00019178,2]
[366912680,1750567850634,-551.43,0.00019178,2]
[366912681,1750567850644,-677.33,0.00019178,2]
[366912682,1750567850653,-353.4464506,0.00019178,2]
[366912683,1750567850663,-1995.06,0.00019178,2]
[366912684,1750567850673,-1035.78,0.00019178,2]
[366912685,1750567850682,-490.0,0.00019178,2]
[366912686,1750567850692,-490.0,0.00019178,2]
[366912687,1750567850701,-951.86,0.00019178,2]
[366912688,1750567850711,-1546.82,0.00019178,2]
[366912689,1750567850721,-490.0,0.00019178,2]